{"text_format":"3","workbook":"xlsx","n_sheets":13,"sheets":["Inicio","Conceptos básicos","Introducción a Funciones","PROMEDIO","MÍN. Y MÁX.","Fecha y hora","Combinar texto y números","Instrucciones SI","BUSCARV","Funciones condicionales","Asistente para funciones","Errores de fórmula","Más información"],"not_rendered":{"images":28,"external_links":2,"defined_names":21},"read":"whole","date_system":"1900"}

{"sheet":"Inicio","index":0,"n_rows":4,"n_cols":1,"rows_kept":4}
[]
["Empezar a trabajar con fórmulas"]
["En unos pocos pasos, podrás ponerte a trabajar con la creación de fórmulas y funciones en Excel, la aplicación de hoja de cálculo más eficaz de todo el mundo."]
["Para volver al principio, presiona CTRL+INICIO. Para iniciar el recorrido, presiona CTRL+AV PÁG."]

{"sheet":"Conceptos básicos","index":1,"n_rows":43,"n_cols":10,"rows_kept":43}
["Conceptos básicos: realizar operaciones matemáticas con Excel"]
["Puedes suma, restar, multiplicar y dividir en Excel sin tener que usar las funciones integradas. Solo tienes que usar algunos operadores básicos: +, -, *, /. Todas las fórmulas se empiezan con un signo igual (=).\n",null,"Usar números:",null,"Operación:","Fórmulas","Respuestas:"]
["Para suma, selecciona la celda F3, escribe =C3+C4 y después presiona Entrar \n",null,1,null,"Suma (+) ",null,{"$f":"C3+C4","v":3}]
["Para Restar, selecciona la celda F4, escribe =C3-C4 y después presiona Entrar. ",null,2,null,"Resta (-) ",null,{"$f":"C3-C4","v":-1}]
["Para Multiplicar, selecciona la celda F5, escribe =C3*C4 y después presiona Entrar.\n",{"$nulls":3},"Multiplicación (*) ",null,{"$f":"C3*C4","v":2}]
["Para Dividir, selecciona la celda F6, escribe =C3/C4 y después presiona Entrar.\n",{"$nulls":3},"División (/) ",null,{"$f":"C3/C4","v":0.5}]
["Mira esto: cambia los números en las celdas C3 y C4 y observa que los resultados de fórmulas cambian automáticamente.",{"$nulls":3},"Potencia (^) ",null,{"$f":"C3^C4","v":1}]
["CRÉDITO ADICIONAL Puedes elevar un valor a una potencia mediante el símbolo ^, como =A1^A2. Escríbelo con AltGr+^. En la celda F7, escribe =C3^C4."]
["Explora para obtener más información"]
["Siguiente paso"]
["Más información sobre las fórmulas, celdas y rangos"]
["Excel se compone de celdas individuales que se agrupan en filas y columnas. Se les asigna números a las filas y letras a las columnas. Hay más de 1 millón de filas y 16.000 columnas y se pueden incluir fórmulas en cualquiera de ellas. \n"]
["Las fórmulas pueden contener referencias a celdas, referencias a rangos de celdas, operadores y constantes. Estos son algunos ejemplos de fórmulas:\n\n=A1+B1\n=10+20\n=SUMA(A1:A10)\n\n"]
["Observarás que en el tercer ejemplo, usamos la función SUMA. Una función es un comando predefinido que toma un valor o valores, los calcula de cierta forma y devuelve un resultado. Por ejemplo, la función SUMA tiene las referencias de celda o rangos que especifiques, y las suma. En este ejemplo toma las celdas A1 a A10 y las suma. Excel tiene más de 400 funciones, que puedes explorar en la pestaña Fórmulas.\n"]
["Las fórmulas con funciones empiezan con un signo igual, luego sigue el nombre de la función con los argumentos (valores que usa una función para calcular) entre paréntesis. \n"]
["Para confirmar una fórmula, presiona Entrar. Una vez que lo hagas, se calculará la fórmula y el resultado se mostrará en la celda. Para ver la propia fórmula, puedes ver la barra de fórmulas debajo de la Cinta de opciones, o presionar F2 para entrar en modo de Edición, donde verás la fórmula en la celda. Presiona ENTRAR nuevamente para finalizar la fórmula y calcular el resultado.\n\n"]
["Algunas explicaciones de fórmulas"]
["=10+20 es una fórmula, donde 10 y 20 son constantes y el signo + es el operador."]
["=SUMA(A1:A10) es una fórmula donde SUMA es el nombre de función, los paréntesis de apertura y cierre contienen los argumentos de la fórmula y A1:A10 es el rango de celdas de la función."]
["=SUMA(A1:A10,C1:C10) es una fórmula donde SUMA es el nombre de función, los paréntesis de apertura y cierre contienen los argumentos de la fórmula y A1:A10,C1:C10 son los rangos de celdas de la función separados por coma."]
["ES BUENO SABER: Las constantes son valores que introduces en las celdas o fórmulas. Mientras =20+10 puede calcularse como =A1+B1, no se recomiendan las constantes. ¿Por qué? Porque no puedes ver fácilmente la constante sin seleccionar la celda y buscarla. Eso puede dificultar que cambiarla más adelante. Es mucho más fácil colocar las constantes en celdas, donde se pueden ajustar fácilmente, y usar en las fórmulas.\n\nPor ejemplo: Selecciona la celda amarilla con 12 a continuación. Verás que usamos la función SUMAR con un rango de celdas. No escribimos \"4\" u \"8\" directamente en la fórmula. \n"]
["Anterior"]
["Siguiente"]
["Más información en la web"]
["Usar Excel como calculadora"]
["Información general sobre fórmulas en Excel"]
["Funciones de Excel (por categoría) "]
["Funciones de Excel (por orden alfabético) "]
["Capacitación en línea gratuita de Excel"]
{"$rows_empty":10}
[{"$nulls":9},"Valores"]
[{"$nulls":9},4]
[{"$nulls":9},8]
[{"$nulls":9},{"$f":"SUM(J41:J42)","v":12}]

{"sheet":"Introducción a Funciones","index":2,"n_rows":88,"n_cols":7,"rows_kept":88}
["Introducción a las Funciones"]
["Las Funciones te permiten hacer una variedad de tareas, como realizar operaciones matemáticas, buscar valores o incluso calcular fechas y horas. Probemos varias formas de SUMA valores con la función SUMA.",null,"Frutas","Cantidad",null,"Carne","Cantidad"]
["En la columna de Cantidad para Frutas (celda D7), escribe =SUMA(D3:D6), o escribe =SUMA (a continuación, selecciona el rango con el mouse y presiona Entrar. Esto SUMAá los valores de las celdas D3, D5, D4 y D6. La respuesta debería ser 170.\n",null,"Manzanas",50,null,"Carne vacuna",50]
["Ahora vamos a probar AutoSuma. Selecciona la celda en la columna de Carne (celda G7) y ve a Fórmulas > Autosuma > seleccionar SUMA. Verás que Excel escribe automáticamente la fórmula. Presiona Entrar para confirmar. La función Autosuma tiene todas las funciones más comunes.\n",null,"Naranjas",20,null,"Pollo",30]
["Este es un excelente método abreviado de teclado. Selecciona la celda D15 y después presiona Entrar. Esto introduce automáticamente la SUMA.",null,"Plátanos",60,null,"Cerdo",10]
["Explora para obtener más información",null,"Limones",40,null,"Pescado",50]
["CRÉDITO ADICIONAL\nPrueba la función CONTAR con cualquiera de los métodos que ya probaste. La función CONTAR cuenta el número de celdas de un rango que contiene números.",null,"SUMA > ",{"$f":"SUM(D3:D6)","v":170},null,"SUMA > "]
["Siguiente paso"]
["Más información sobre funciones",null,"Elemento","Cantidad",null,"Elemento","Cantidad"]
["Ve a la pestaña Fórmulas y examina la biblioteca de funciones, donde se muestran las funciones por categoría, como Texto, Fecha y hora, etcétera. Insertar función te permitirá buscar funciones por nombre y abrir un Asistente para funciones que pueda ayudarte a crear la fórmula. \n\nCuando empieces a escribir un nombre de función después de presionar =, Excel abrirá Intellisense, que mostrará todas las funciones que empiecen con las letras que escribes. Cuando encuentres la que deseas, presiona la tecla Tab y Excel automáticamente finalizará el nombre de la Función y el paréntesis de apertura. También mostrará los argumentos necesarios y opcionales. \n\n\n\nAhora vamos a ver la anatomía de algunas funciones. La función SUMA está estructurada así:",null,"Pan",50,null,"Pan",50]
["Si la función SUMA pudiera hablar, diría,  devuelve la suma de todos los valores de las celdas D38 a D41 y todas los de la columna H. SUMA es el nombre de la función, D38:D41 es el primer argumento de rango, que casi siempre es obligatorio, y H:H es el segundo argumento de rango , separado por comas. Ahora, vamos a probar una que no necesita argumentos.\n",null,"Donuts",100,null,"Donuts",100]
["La función HOY devuelve la fecha actual. Se actualizará automáticamente cuando Excel vuelva a calcular.",null,"Galletas",40,null,"Galletas",40]
["MIRA ESTO\nSelecciona estas celdas. Luego, en la esquina inferior derecha de la ventana de Excel, busca SUMA: 170 en la barra de la parte inferior. Se denomina Barra de estado y es otra manera de encontrar rápidamente un total y otros detalles acerca de una celda o rango seleccionados. ",null,"Pasteles",50,null,"Pasteles",50]
["DETALLE IMPORTANTE\nHaz doble clic en esta celda. Verás el 100 hacia el final. Aunque es posible colocar los números en una fórmula como esta, no es aconsejable a menos que sea absolutamente necesario. Esto se conoce como una constante, y es fácil olvidar que está allí. Te recomendamos hacer referencia a otra celda, como la celda F51. De esa forma se ve fácilmente y no queda oculto en una fórmula. ",null,"Tartas",20,null,"Tartas",20]
["Más información en la web",null,"SUMA > ",null,null,"CONTAR >"]
["Todo sobre la función SUMA"]
["Usar Autosuma para SUMA números"]
["Todo sobre la función CONTAR"]
["Capacitación en línea gratuita de Excel"]
["Volver al principio"]
["Siguiente paso"]
{"$rows_empty":12}
[null,null,"Frutas","Cantidad"]
[null,null,"Manzanas",50]
[null,null,"Naranjas",20]
[null,null,"Plátanos",60]
[null,null,"Limones",40]
[null,null,"SUMA > ",{"$f":"SUM(D35:D38)","v":170}]
[]
[]
[]
[]
[null,null,"Elemento","Cantidad"]
[null,null,"Coches",20]
[null,null,"Camiones",10]
[null,null,"Bicicletas",10]
[null,null,"Patines",40]
[]
[{"$nulls":3},"Total:",null,"Valor adicional","Nuevo Total"]
[{"$nulls":3},{"$f":"SUM(D45:D48,100)","v":180},null,100,{"$f":"SUM(D45:D48,F51)","v":180}]
{"$rows_empty":35}
["Capacitación en línea gratuita de Excel"]
["Para volver al principio, presiona CTRL+INICIO. Para continuar con el paso siguiente, presiona CTRL+AV PÁGINA"]

{"sheet":"PROMEDIO","index":3,"n_rows":46,"n_cols":7,"rows_kept":46}
["Función PROMEDIO"]
["Usa la función PROMEDIO para obtener el promedio de números en un rango de celdas.",null,"Frutas","Cantidad",null,"Carne","Cantidad"]
["Selecciona la celda D7 y después usa Autosuma para agregar una función PROMEDIO.",null,"Manzanas",50,null,"Carne vacuna",50]
["Ahora selecciona la celda G7 y escribe una función PROMEDIO escribiendo =PROMEDIO(G3:G6). ",null,"Naranjas",20,null,"Pollo",30]
["En la celda D15, puedes usar Autosuma, o escribir para introducir otra función PROMEDIO. ",null,"Plátanos",60,null,"Cerdo",10]
["MIRA ESTO\nSelecciona cualquier rango de números y después busca un Promedio instantáneo en la barra de estado.\n",null,"Limones",40,null,"Pescado",50]
["Activar la hoja anterior",null,"PROMEDIO >",null,null,"PROMEDIO >"]
["Avanza hasta la siguiente hoja"]
["CRÉDITO ADICIONAL\nPrueba usar INTERMEDIO o MODO aquí. \n\nINTERMEDIO proporciona el valor central de un conjunto de datos, mientras que \nMODO proporciona la opción que se produce con más frecuencia.\n",null,"Elemento","Cantidad",null,"Elemento","Cantidad"]
["Vínculos para más información en la web",null,"Pan",50,null,"Pan",50]
["Selecciona esta opción saber todo sobre la función PROMEDIO en la web",null,"Donuts",100,null,"Donuts",100]
["Selecciona esta opción para saber en qué consiste la función INTERMEDIO en la web",null,"Galletas",40,null,"Galletas",40]
["Selecciona esta opción para saber en qué consiste la función MODO en la web",null,"Pasteles",50,null,"Pasteles",50]
["Selecciona esta opción para obtener información sobre la capacitación gratuita de Excel en la web",null,"Tartas",20,null,"Tartas",20]
[null,null,"PROMEDIO >"]
{"$rows_empty":13}
[null,null,"Más información sobre la función SUMA"]
[null,null,"En algunas de las sugerencias anteriores, te enseñamos cómo usar la función SUMA. Aquí hay más información sobre ella."]
[null,null,"Las celdas C37 a D41 contienen datos con dos columnas: Frutas y cantidad. "]
[null,null,"La fórmula en la celda D42: =SUMA(D38:D41)."]
[null,null,"Si la función SUMA en la celda D42 pudiera hablar, diría esto: Suma los valores de las celdas D38, D39, D40 y D41."]
[null,null,"Esta es otra forma que se puede usar:"]
[null,null,"Las celdas C47 a D48 contienen datos con dos columnas: Elemento y Cantidad. "]
[]
[]
[]
[]
[]
[null,null,"Más información en la web"]
[null,null,"Todo sobre la función SUMA"]
[null,null,"Todo sobre la función SUMAR.SI"]
[null,null,"Usar Excel como tu calculadora"]
[null,null,"Capacitación en línea gratuita de Excel"]
[null,null,"Para volver al principio, presiona CTRL+INICIO. Para continuar con el paso siguiente, presiona CTRL+AV PÁGINA"]

{"sheet":"MÍN. Y MÁX.","index":4,"n_rows":25,"n_cols":7,"rows_kept":25}
["Funciones MÍN. y MÁX."]
["Usa la función MÍN. para obtener el número mínimo de un rango de celdas.",null,"Frutas","Cantidad",null,"Carne","Cantidad"]
["Usa la función MÁX. para obtener el número mínimo de un rango de celdas.",null,"Manzanas",50,null,"Carne vacuna",50]
["Haz clic en la celda D7, después usa el Asistente de Autosuma para agregar una función MÍN.\n",null,"Naranjas",20,null,"Pollo",30]
["Ahora selecciona la celda G7 y escribe una función MÁX. escribiendo =MÁX(G3:G6).\n",null,"Plátanos",60,null,"Cerdo",10]
["En la celda D15, puedes usar el Asistente de Autosuma, o escribe una función MÍN. o MÁX. \n",null,"Limones",40,null,"Pescado",50]
["Más información en la web\n",null,"MÍN. >",null,null,"MÁX. >"]
["Todo sobre la función MÍN."]
["Todo sobre la función MÁX.",null,"Elemento","Cantidad",null,"Elemento","Cantidad"]
["Capacitación en línea gratuita de Excel",null,"Pan",50,null,"Pan",50]
["ES BUENO SABER\nPuedes usar MÍN. o MÁX. con varios rangos o valores para mostrar el mayor o menor de los valores, como =MÍN.(A1:A10,B1:B10) o =MÁX.(A1:A10,B1), donde B1 contiene un valor de umbral, como 10, en cuyo caso la fórmula no devolverá un resultado menor que 10.\n",null,"Donuts",100,null,"Donuts",100]
[null,null,"Galletas",40,null,"Galletas",40]
[null,null,"Pasteles",50,null,"Pasteles",50]
[null,null,"Tartas",20,null,"Tartas",20]
[null,null,"MÍN. o MÁX. >",{"$nulls":3},{"$f":"MIN(G10:G14,10)","v":10}]
[]
[]
[]
["Puedes utilizar MÍN. o MÁX. con varios rangos o valores para mostrar el mayor o menor de esos valores, como =MIN(A1:A10,B1:B10) o =MAX (A1 : A10, 10)."]
[]
["Más información en la web"]
["Todo sobre la función MÍN."]
["Todo sobre la función MÁX."]
["Usar Excel como tu calculadora"]
["Capacitación en línea gratuita de Excel"]

{"sheet":"Fecha y hora","index":5,"n_rows":47,"n_cols":6,"rows_kept":47}
["Funciones de fecha"]
["Excel puede proporcionarte la fecha actual, según la configuración regional de tu equipo. También puede SUMA y restar Fechas."]
["Consulta la función HOY, que proporciona la fecha de hoy. Estas son funciones directas o volátiles, por lo que al abrir el libro mañana, tendrá la fecha de mañana. Escribe =HOY() en la celda D6. \n"]
["Restar fechas: escribe tu próximo cumpleaños en formato DD/MM/AA en la celda D7 y mira cómo Excel te dice cuántos días faltan para que llegue con la fórmula =D7-D6 en la celda D8.\n"]
["Suma fechas: supongamos que deseas saber la fecha de vencimiento de una factura, o cuándo tienes que devolver un libro de la biblioteca. Puedes agregar días a una fecha para descubrirlo. En la celda D10, escribe un número de días aleatorio. En la celda D11, agregamos =D6+D10 para calcular la fecha de vencimiento a partir de hoy.\n",null,"Funciones de fecha"]
["ES BUENO SABER\nExcel mantiene fechas y horas en función del número de días desde el 1 de enero de 1900. Las horas se conservan en partes fraccionarias de un día según los minutos. Así, 01/01/2017 12:30 se almacena como 42736.5208. Si la hora o fecha aparecen como números así, puedes presionar Ctrl+1 > Número > Selecciona un formato de Fecha u Hora. ",null,"Fecha de hoy:",null,null,{"$f":"IF(D6=TODAY(),\"¡Muy bien!\",\"\")","v":""}]
["DETALLE IMPORTANTE\nSi no deseas que Excel muestre un número negativo porque todavía no ingresaste tu cumpleaños, puedes usar una función SI de esta forma: =SI(D7=\"\";\"\";D7-D6), que dice \"SI D7 es igual a nada, entonces no mostrar nada; en caso contrario, mostrar D7 menos D6\".\n",null,"Tu cumpleaños:"]
["Funciones de tiempo",null,"Días hasta tu fecha de nacimiento:",{"$f":"D7-D6","v":0}]
["Excel puede proporcionarte la hora actual, según la configuración regional de tu equipo. También puedes SUMA y restar Fechas. Por ejemplo, es posible que debas realizar un seguimiento de cuántas horas un empleado trabajó cada semana y calcular su salario y las horas extra.\n"]
["En la celda D28, escribe =AHORA(), lo que te dará la hora actual y se actualizará con cada cálculo de Excel. Si necesitas cambiar el formato de Hora, puedes ir a Ctrl+1 > Número > Hora > Selecciona el formato que deseas.",null,"Días del período de gracia:"]
["Suma horas entre horas: en la celda D36 escribimos  =((D35-D32)-(D34-D33))*24, que calcula las horas de inicio y finalización de una persona, luego resta el tiempo que le llevó almorzar. El *24 al final de la fórmula convierte la parte fraccionaria del día que Excel ve en horas. Debes darle a la celda un formato de Número. Para ello, ve a Inicio > Formato > Celdas (Ctrl+1) > Número > Número > 2 decimales.\n\n",null,"La factura vence el:",{"$f":"D6+D10","v":"00:00:00"}]
["Si esta fórmula pudiera hablar, diría, \"Toma el Tiempo fuera y réstalo del Tiempo dentro, luego resta las horas de Almuerzo fuera/dentro, luego multiplica eso por 24 para convertir el tiempo fraccional de Excel a horas\", o =((Tiempo dentro - Tiempo fuera)-(Almuerzo dentro - Almuerzo fuera))*24."]
["Anterior"]
["Siguiente"]
["Más información en la web"]
["Todo sobre la función HOY"]
["Todo sobre la función AHORA"]
["Todo sobre la función FECHA"]
["Capacitación en línea gratuita de Excel"]
{"$rows_empty":7}
[null,null,"Funciones de tiempo"]
[null,null,"Hora actual:"]
[]
[]
[null,null,"Horas trabajadas diarias"]
[null,null,"Tiempo dentro:","08:00:00"]
[null,null,"Almuerzo fuera:","12:00:00"]
[null,null,"Almuerzo dentro:","13:00:00"]
[null,null,"Tiempo fuera:","17:00:00"]
[null,null,"Total de horas:",{"$f":"((D35-D32)-(D34-D33))*24","v":8.000000000000002}]
{"$rows_empty":8}
[null,null,"Fecha y hora estáticas"]
[null,null,"Fecha:","2017-09-27"]
[null,null,"Hora:","08:52:00"]

{"sheet":"Combinar texto y números","index":6,"n_rows":37,"n_cols":6,"rows_kept":37}
["Unión de texto de celdas diferentes"]
["Hay muchas ocasiones en Excel en las que deseas combinar texto que se encuentra en celdas diferentes. Este ejemplo es muy común; tienes los nombres y apellidos y deseas combinarlos como nombre, apellido o nombre completo. Afortunadamente, Excel nos permite hacerlo con el signo de \"y\" (&), que puedes escribir con Mayús+6.\n",null,"Nombre","Apellido","Apellido, Nombre","Nombre completo"]
["En la celda E3, escribe =D3&C3 para unir los nombres y apellidos. \n",null,"Nancy","Smith",{"$f":"D3&\", \"&C3","v":"Smith, Nancy"},{"$f":"C3&\" \"&D3","v":"Nancy Smith"}]
["Pero SmithNancy no se ve muy bien. Es necesario agregar una coma y un espacio. Para ello, usaremos comillas para crear una nueva cadena de texto. Esta vez, escribe =D3&\", \"&C3. La porción &\", \"& nos permite unir una coma y un espacio con el texto en las celdas.\n",null,"Andy","North"]
["Para crear el nombre completo, uniremos nombre y apellido, pero usaremos un espacio sin coma. En F3, escribe =C3&\" \"&D3.\n",null,"Jan","Kotas"]
["Explora para obtener más información",null,"Mariya","Jones"]
["Siguiente",null,"Steven","Thorpe"]
["Usar texto y números juntos",null,"Michael","Neipper"]
["Ahora, usaremos el símbolo & para unir texto y números, no solo texto y texto\n\nMira las celdas C28:D29. ¿Ves que la fecha y la hora están en celdas independientes? Puedes combinarlas con el símbolo &, como se muestra en las celdas C32:C33; pero, no se ve bien, ¿verdad? Desafortunadamente, Excel no sabe cómo deseas dar formato a los números, por eso los divide a su formato más básico, que en este caso es la fecha de la serie. Es necesario que le indiquemos explícitamente a Excel el formato de la parte numérica de la fórmula, para que lo muestre como deseas en la cadena de texto resultante. Puedes hacerlo con la función TEXTO y un código de formato.",null,"Robert","Zare"]
["En la celda C36, escribe =C28&\" \"&TEXTO(D28,\"DD/MM/AAAA\"). DD/MM/AAAA es el código de formato de Estados Unidos para Mes/Día/Año, como 25/09/2017.\n",null,"Yvonne","McKay"]
["En la celda C37, escribe =C29&\" \"&TEXTO(D29,\"H:MM\"). H:MM es el código de formato de Estados Unidos para horas:minutos, como 1:30.\n\n"]
["MIRA ESTO\nLas fórmulas, especialmente los grandes, pueden resultar difíciles de leer, pero puedes dividirlas con espacios de esta forma:\n\n=C28 & \" \" & TEXTO(D28,\"DD/MM/AAAA\")"]
["VALE LA PENA EXPLORAR\nSi no sabes qué código de formato usar, puedes usar Ctrl+1 > Número para dar formato a cualquier celda como desees.  Selecciona la opción Personalizado. Puedes copiar el código de formato que se muestra en tu fórmula."]
["Más información en la web"]
["Todo sobre la función TEXTO"]
["Combinar texto y números"]
["Capacitación en línea gratuita de Excel"]
{"$rows_empty":9}
[null,null,"Usar texto y números"]
[null,null,"Fecha de hoy:",{"$f":"TODAY()","v":"2018-11-06"}]
[null,null,"Tiempo actual:",{"$f":"NOW()","v":43410.14451539352}]
[]
[null,null,"Combinar texto y números"]
[null,null,{"$f":"C28&\" \"&D28","v":"Fecha de hoy: 43410"}]
[null,null,{"$f":"C29&\" \"&D29","v":"Tiempo actual: 43410.1445153935"}]
[]
[null,null,"Dar formato a texto y números"]
[null,null,{"$f":"C28 &\" \"& TEXT(D28,\"DD/MM/AAAA\")","v":"Fecha de hoy: 06/11/Tuesday"}]
[null,null,{"$f":"C29&\" \"&TEXT(D29,\"H:MM\")","v":"Tiempo actual: 3:28"}]

{"sheet":"Instrucciones SI","index":7,"n_rows":37,"n_cols":6,"rows_kept":37}
["Instrucciones SI"]
["Las instrucciones SI te permiten realizar comparaciones lógicas entre las condiciones. Por lo general, una instrucción SI indica que si una condición es verdadera hay que hacer algo, de lo contrario, hay que hacer otra cosa. Las fórmulas pueden devolver texto, valores o incluso más cálculos."]
["En la celda D9 escribe =SI(C9=\"Manzana\",VERDADERO,FALSO). La respuesta correcta es VERDADERO. \n"]
["Copia D9 a D10. Aquí la respuesta debería ser FALSO porque una naranja no es un manzana.\n"]
["Prueba otro ejemplo mirando la fórmula en la celda D12. Ya te enseñamos =SI(C12<100,\"menor que 100\",\"mayor o igual que 100\"). ¿Qué ocurre si escribes un número mayor que o igual a \n100 en la celda C12?\n"]
["DETALLE IMPORTANTE\nVERDADERO y FALSO son diferentes a otras palabras en fórmulas de Excel porque no tienen que estar entre comillas y Excel las pondrá en mayúsculas automáticamente. Los números tampoco tienen que estar entre comillas. El texto normal, como Sí o No necesita estar entre comillas, como en este ejemplo: \n=SI(C3=\"Manzana\",\"Sí\",\"No\")"]
["Explora para obtener más información"]
["Siguiente",null,"Instrucciones SI"]
["Instrucción SI con otra función",null,"Manzana"]
["Las instrucciones SI pueden forzar cálculos adicionales que se deben realizar si se cumple con cierta condición. Aquí vamos a evaluar una celda para ver si deben cobrarse impuestos sobre las ventas y calcular si la condición es verdadera.\n",null,"Naranja"]
["En la celda F33, escribimos =SI(E33=\"Sí\",F31*Impuesto sobre las ventas,0), donde configuramos Impuesto sobre las ventas como un Rango con nombre con un valor de 0.0825. Nuestra fórmula indica que Si la celda E33 es igual a Sí, hay que multiplicar el Impuesto sobre las ventas las veces que indica la celda F31, de lo contrario devolver 0.\n\nPrueba cambiar Sí a No en la celda E33 para ver cómo cambia el cálculo."]
["A continuación agregamos una instrucción SI para calcular los gastos de envío si es necesario. En la celda F35 verás =SI(E35=\"Sí\",SUMA(D28:D29)*1.25,0). Esto indica \"Si la celda E35 es Sí, a continuación, realizar la suma de la columna Cantidad de la tabla anterior y multiplicarla por 1.25, de lo contrario, devolver 0\".\n",null,50,{"$f":"IF(C12<100,\"Menos que 100\",\"Mayor o igual que 100\")","v":"Menos que 100"}]
["Después, cambia el 1.25 en la fórmula de la celda F35 a \"Envío\". Cuando empieces a escribir, la función de corrección automática de Excel debería encontrar automáticamente la opción. Cuando lo haga, presiona la tecla Tab para introducirla. Se trata de un Rango con nombre y lo ingresamos desde Fórmulas > Definir nombre. Ahora, si alguna vez quieres cambiar los gastos de envío, solo tienes que hacerlo en un lugar y puedes usar el nombre de Envío en cualquier parte del libro.\n\n"]
["ES BUENO SABER\nAl crear una fórmula, Excel colocará automáticamente los bordes de colores alrededor de los rangos de referencia en la fórmula y los rangos correspondientes en la fórmula serán del mismo color. Puedes ver esto si seleccionas la celda F33 y presionas F2 para modificar la fórmula."]
["SUGERENCIA DE EXPERTOS\nLos rangos con nombre te permiten definir términos o valores en un solo lugar y, a continuación, volver a usarlos en todo un libro. Para ver todos los rangos con nombre de este libro, visita Fórmulas > Administrador de nombres. Haz clic aquí para obtener más información.\n"]
["Anterior"]
["Siguiente"]
["Más información en la web"]
["Todo sobre la función SI"]
["Todo sobre la función SI.CONJUNTO"]
["Instrucciones SI avanzadas"]
["Capacitación en línea gratuita de Excel"]
[]
[]
[]
[]
[null,null,"Elemento","Cantidad","Precio","Total"]
[null,null,"Widget",2,{"v":9.760711585683554,"d":"$9.76"},{"$f":"'Instrucciones SI'!$E$28:$E$29*'Instrucciones SI'!$D$28:$D$29","v":{"v":19.521423171367108,"d":"$19.52"}}]
[null,null,"Doohickey",3,{"v":3.4189202461080024,"d":"$3.42"},{"$f":"'Instrucciones SI'!$E$28:$E$29*'Instrucciones SI'!$D$28:$D$29","v":{"v":10.256760738324008,"d":"$10.26"}}]
[]
[{"$nulls":3},"Subtotal",{"$f":"SUM('Instrucciones SI'!$E$28:$E$29)","v":{"v":13.179631831791557,"d":"$13.18"}},{"$f":"SUM('Instrucciones SI'!F28:F29)","v":{"v":29.778183909691116,"d":"$29.78"}}]
[]
[{"$nulls":3},"¿Impuesto sobre las ventas?","Sí",{"$f":"IF(E33=\"Sí\",F31*Impuesto_sobre_las_ventas,0)","v":{"v":2.456700172549517,"d":"$2.46"}}]
[]
[{"$nulls":3},"¿Envío?","Sí",{"$f":"IF(E35=\"Sí\",SUM(D28:D29)*1.25,0)","v":{"v":6.25,"d":"$6.25"}}]
[]
[{"$nulls":3},"Total",null,{"$f":"SUM(F33,F31,F35)","v":{"v":38.48488408224063,"d":"$38.48"}}]

{"sheet":"BUSCARV","index":8,"n_rows":43,"n_cols":7,"rows_kept":43}
["BUSCARV"]
["BUSCARV es una de las funciones más utilizadas en Excel (¡y una de nuestras favoritas también!). BUSCARV te permite buscar un valor en una columna a la izquierda, y a continuación devuelve información en otra columna a la derecha, si encuentra una coincidencia. BUSCARV indica lo siguiente:\n"]
["´=BUSCARV(A1,B:C,2,FALSO)"]
["¿Qué deseas buscar?"]
["Si lo encuentras, ¿en cuántas columnas a la derecha deseas obtener un valor?"]
["¿Dónde deseas buscarlo?"]
["¿Deseas a una coincidencia exacta o aproximada?"]
["En la celda D22, escribe =BUSCARV(C22,C17:D20,2,FALSO). La respuesta correcta para Manzanas es 50. BUSCARV buscó Manzanas, encontró, luego fue a una columna a la derecha y devolvió la cantidad.\n\n"]
["Ahora, intenta tú mismo con la sección Carne, en la celda G22. Debes terminar con =BUSCARV(F22,F17:G20,2,FALSO).\n\n"]
["EXPERIMENTO\nIntenta seleccionar diferentes elementos de las listas desplegables. Verás que las celdas de resultado se actualizan al instante con los nuevos valores."]
["Explora para obtener más información"]
["Siguiente"]
["BUSCARV y #N/A"]
["Invariablemente, encontrarás situaciones donde BUSCARV no puede encontrar lo que le solicitaste y devuelve un error (#N/A). A veces, es porque simplemente el valor de búsqueda no existe, o puede ser porque la celda de referencia todavía no tiene un valor.\n"]
["Si sabes que tu valor de búsqueda existe, pero deseas ocultar el error si la celda de búsqueda está en blanco, puedes usar una instrucción SI. En este caso, vamos a envolver la fórmula BUSCARV existente de esta forma en la celda D43:\n\n=SI(C43=\"\",\"\",BUSCARV (C43,C37:D41,2,FALSO))\n\nEsto indica que si la celda C43 es igual a nada (\"\"), devuelve nada, de lo contrario, devuelve resultados de BUSCARV. Observa el segundo paréntesis de cierre al final de la fórmula. Ese paréntesis cierra la instrucción SI.\n"]
["Si no estás seguro si existe tu valor de búsqueda, pero deseas suprimir el error #N/A, puedes usar una función de manejo de errores denominada SI.ERROR en la celda G43: =SI.ERROR(BUSCARV(F43,F37:G41,2,FALSO);\"\"). SI.ERROR indica que si BUSCARV devuelve un resultado válido, lo muestra, de lo contrario, no muestra nada (\"\"). No mostramos nada aquí (\"\"), pero también puedes usar números (0,1, 2, etc.), o texto, como \"La fórmula no es correcta\".\n",null,"Frutas","Cantidad",null,"Carne","Cantidad"]
["DETALLE IMPORTANTE\nSI.ERROR es lo que se denomina un controlador de errores global, lo que significa que suprimirá cualquier error que podría producir la fórmula. Esto puede provocar problemas si Excel te proporciona una notificación de que la fórmula contiene un error legítimo que debe solucionarse.\n\nUna regla general es no agregar controladores de errores en las fórmulas hasta que estés completamente seguro de que funcionan correctamente.",null,"Manzanas",50,null,"Carne vacuna",50]
["Anterior",null,"Naranjas",20,null,"Pollo",30]
["Siguiente",null,"Plátanos",60,null,"Cerdo",10]
["Más información en la web",null,"Limones",40,null,"Pescado",50]
["Todo acerca de la función BUSCARV"]
["Todo acerca de las funciones ÍNDICE/COINCIDIR",null,"Manzanas",null,null,"Cerdo"]
["Todo sobre la función SI.ERROR"]
["Usa tablas dinámicas para analizar datos de la hoja de cálculo"]
["Capacitación en línea gratuita de Excel"]
{"$rows_empty":9}
[null,null,"Si la función SUMA en la celda D42 pudiera hablar, diría esto: Suma los valores de las celdas D38, D39, D40 y D41."]
[null,null,"Elemento","Cantidad",null,"Elemento","Cantidad"]
[null,null,"Pan",50,null,"Pan",50]
[null,null,"Donuts",100,null,"Donuts",100]
[null,null,"Galletas",40,null,"Galletas",40]
[null,null,"Pasteles",50,null,"Pasteles",50]
[null,null,"Tartas",20,null,"Tartas",20]
[]
[{"$nulls":3},{"$f":"VLOOKUP(C43,C37:D41,2,FALSE)","v":{"$error":"#N/A"}},null,"Pastelería",{"$f":"IFERROR(VLOOKUP(F43,F37:G41,2,FALSE),\"\")","v":""}]

{"sheet":"Funciones condicionales","index":9,"n_rows":123,"n_cols":34,"rows_kept":123}
["Funciones condicionales: SUMAR.SI"]
["Las funciones condicionales te permiten sumar, calcular promedios, contar u obtener el mínimo o máximo de un rango según una condición determinada o los criterios que especifiques. Por ejemplo, de todas las frutas de la lista, ¿cuántas son manzanas? O bien, ¿cuántas naranjas hay del tipo Florida?",null,"Frutas","Cantidad",null,"Frutas","Tipo","Cantidad",{"$nulls":17},"Frutas",null,"Manzanas",null,"Naranjas",null,"Plátanos",null,"Limones"]
["SUMAR.SI te permite sumar en un rango sobre la base de un criterio específico que buscas en otro rango, como cuántas Manzanas tienes. Selecciona la celda D17 y escribe =SUMAR.SI(C3:C14,C17,D3:D14). SUMAR.SI se estructura de esta forma:",null,"Manzanas",50,null,"Manzanas","Fuji",50,{"$nulls":17},"Manzanas",null,"Fuji",null,"Florida",null,"Cavendish",null,"Rugosa"]
["´=SUMAR.SI(C3:C14,C17,D3:D14)",null,"Naranjas",20,null,"Naranjas","Florida",20,{"$nulls":17},"Naranjas",null,"Honeycrisp",null,"Ombligo",null,"Lady Finger",null,"Eureka"]
["¿Qué rango deseas mirar?",null,"Plátanos",60,null,"Plátanos","Cavendish",60,{"$nulls":17},"Plátanos"]
["¿Qué valor (texto o número) deseas buscar?",null,"Limones",40,null,"Limones","Rugosa",40,{"$nulls":17},"Limones"]
["Para cada coincidencia, ¿qué rango deseas agregar para sumar?",null,"Manzanas",50,null,"Manzanas","Honeycrisp",50]
["SUMAR.SI.CONJUNTO es lo mismo que SUMAR.SI, pero te permite usar varios criterios. Así que en este ejemplo, puedes buscar Fruta y Tipo, en lugar de solo de Fruta. Selecciona la celda H17 y escribe =SUMAR.SI.CONJUNTOS(H3:H14,F3:F14,F17,G3:G14,G17). SUMAR.SI.CONJUNTO se estructura así:\n",null,"Naranjas",20,null,"Naranjas","Ombligo",20]
["´=SUMAR.SI.CONJUNTO(H3:H14,F3:F14,F17,G3:G14,G17)",null,"Plátanos",60,null,"Plátanos","Lady Finger",60]
["¿Qué rango deseas sumar?",null,"Limones",40,null,"Limones","Eureka",40]
["Este es el primer rango para buscar coincidencias",null,"Manzanas",50,null,"Manzanas","Honeycrisp",50]
["Estos son los criterios para la primera coincidencia",null,"Naranjas",20,null,"Naranjas","Ombligo",20]
["Este es el segundo rango para buscar coincidencias",null,"Plátanos",60,null,"Plátanos","Cavendish",60]
["Estos son los criterios para la segunda coincidencia",null,"Limones",40,null,"Limones","Eureka",40]
["SUGERENCIA DE EXPERTOS\nCada una de las celdas de Fruta y Tipo tiene una lista desplegable donde puedes seleccionar diferentes frutas. Pruébala y verás que las fórmulas se actualizan automáticamente."]
["Explora para obtener más información",null,"Frutas","SUMAR.SI",null,"Frutas","Tipo","SUMAR.SI.CONJUNTO"]
["Siguiente paso",null,"Manzanas",null,null,"Naranjas","Florida"]
["Funciones condicionales: CONTAR.SI"]
["CONTAR.SI y CONTAR.SI.CONJUNTO te permiten contar valores de un rango según unos criterios que especifiques. Son un poco diferentes de otras funciones SI y SI.CONJUNTO, que solo tienen un rango de criterios y criterios. No evalúan un rango, y buscan otro para resumir."]
["Selecciona la celda D64 y escribe =CONTAR.SI(C50:C61,C64). CONTAR.SI se estructura de esta forma:"]
["´=CONTAR.SI(C50:C61,C64)"]
["¿Qué rango deseas mirar?"]
["¿Qué valor (texto o número) deseas buscar?"]
["CONTAR.SI.CONJUNTO es lo mismo que SUMAR.SI, pero te permite usar varios criterios. Así que en este ejemplo, puedes buscar Fruta y Tipo, en lugar de solo de Fruta. Selecciona la celda H64 y escribe =CONTAR.SI.CONJUNTO(F50:F61,F64,G50:G61,G64). CONTAR.SI.CONJUNTO se estructura así:\n"]
["´=CONTAR.SI.CONJUNTO(F50:F61,F64,G50:G61,G64)"]
["Este es el primer rango a contar"]
["Estos son los criterios para la primera coincidencia"]
["Este es el segundo rango a contar"]
["Estos son los criterios para la segunda coincidencia"]
["Explora para obtener más información"]
["Siguiente"]
["Más funciones condicionales"]
["Ya viste SUMAR.SI, SUMAR.SI.CONJUNTO, CONTAR.SI y CONTAR.SI.CONJUNTO. Ahora puedes intentar por tu cuenta con otras funciones, como PROMEDIO.SI/CONJUNTO, MÁX.SI.CONJUNTO, MÍN.SI.CONJUNTO Todas están estructuradas del mismo modo, por lo que cuando recibas una fórmula escrita, solo tienes que cambiar el nombre de la función por el que desees. Hemos escrito todas las funciones que necesitarás para la celda E106, para que puedas copiarlas y pegarlas, o intenta escribirlas tú mismo a modo de práctica.\n\nSUMAR.SI  =SUMAR.SI(C92:C103,C106,E92:E103) \nSUMAR.SI.CONJUNTO  =SUMAR.SI.CONJUNTO(E92:E103,C92:C103,C106,D92:D103,D106) \nPROMEDIO.SI  =PROMEDIO.SI(C92:C103,C106,E92:E103) \nPROMEDIO.SI.CONJUNTO =PROMEDIO.SI.CONJUNTO(E92:E103,C92:C103,C106,D92:D92,D106)\nCONTAR.SI  =CONTAR.SI(C92:C103,C106)\nCONTAR.SI.CONJUNTO  =CONTAR.SI.CONJUNTO(C92:C103,C106,D92:D103,D106) \nMÁX.SI.CONJUNTO  =MÁX.SI.CONJUNTO(E92:E103,C92:C103,C10,D92:D103,D106)\nMÍN.SI.CONJUNTO  =MÍN.SI.CONJUNTO(E92:E103,C92:C103,C106,D92:D103,D106)\n\n\n"]
["Explora para obtener más información"]
["Siguiente"]
["SUMAR.SI con un argumento de valor"]
["Este es un ejemplo de la función SUMAR.SI que usa \"mayor que\" (>) para encontrar todos los valores mayores que una determinada cantidad:"]
["´=SUMAR.SI(D118:D122,\">50\")\n"]
["Suma algunos valores basándote en este criterio:"]
[".... Revisa estas celdas...\n "]
[".. .y si el valor es mayor que 50, súmalo.\n "]
["NOTA: Si encuentras que realizas una gran cantidad de fórmulas condicionales, es posible que una tabla dinámica sea una mejor solución. Consulta este artículo de la tabla dinámica para obtener más información."]
["Más información en la web"]
["Todo sobre la función SUMAR.SI"]
["Todo sobre la función SUMAR.SI.CONJUNTO"]
["Todo sobre la función CONTAR.SI"]
["Todo sobre la función CONTAR.SI.CONJUNTO"]
["Todos sobre la función PROMEDIO.SI"]
["Todos sobre la función PROMEDIO.SI.CONJUNTO",null,"Frutas","Cantidad",null,"Frutas","Tipo","Cantidad"]
["Todo sobre la función MÍN.SI.CONJUNTO",null,"Manzanas",50,null,"Manzanas","Fuji",50]
["Todos sobre la función MÁX.SI.CONJUNTO",null,"Naranjas",20,null,"Naranjas","Florida",20]
["Crear una lista desplegable",null,"Plátanos",60,null,"Plátanos","Cavendish",60]
["Capacitación en línea gratuita de Excel",null,"Limones",40,null,"Limones","Rugosa",40]
["Volver al principio",null,"Manzanas",50,null,"Manzanas","Honeycrisp",50]
["Siguiente",null,"Naranjas",20,null,"Naranjas","Ombligo",20]
[null,null,"Plátanos",60,null,"Plátanos","Lady Finger",60]
[null,null,"Limones",40,null,"Limones","Eureka",40]
[null,null,"Manzanas",50,null,"Manzanas","Honeycrisp",50]
[null,null,"Naranjas",20,null,"Naranjas","Ombligo",20]
[null,null,"Plátanos",60,null,"Plátanos","Cavendish",60]
[null,null,"Limones",40,null,"Limones","Eureka",40]
[]
[null,null,"Frutas","CONTAR.SI",null,"Frutas","Tipo","CONTAR.SI.CONJUNTO"]
[null,null,"Manzanas",{"$f":"COUNTIF(C50:C61,C64)","v":3},null,"Naranjas","Florida",{"$f":"COUNTIFS(F50:F61,F64,G50:G61,G64)","v":1}]
{"$rows_empty":26}
[null,null,"Frutas","Tipo","Cantidad"]
[null,null,"Manzanas","Fuji",50]
[null,null,"Naranjas","Florida",20]
[null,null,"Plátanos","Cavendish",60]
[null,null,"Limones","Rugosa",40]
[null,null,"Manzanas","Honeycrisp",50]
[null,null,"Naranjas","Ombligo",20]
[null,null,"Plátanos","Lady Finger",60]
[null,null,"Limones","Eureka",40]
[null,null,"Manzanas","Honeycrisp",50]
[null,null,"Naranjas","Ombligo",20]
[null,null,"Plátanos","Cavendish",60]
[null,null,"Limones","Eureka",40]
[]
[null,null,"Frutas","Tipo","Pruébalo"]
[null,null,"Limones","Eureka",{"$f":"SUMIFS(E92:E103,C92:C103,C106,D92:D103,D106)","v":80}]
{"$rows_empty":10}
[null,null,"Elemento","Cantidad"]
[null,null,"Pan",50]
[null,null,"Donuts",100]
[null,null,"Galletas",40]
[null,null,"Pasteles",50]
[null,null,"Tartas",20]
[{"$nulls":3},{"$f":"SUMIF(D118:D122,\">50\")","v":100}]

{"sheet":"Asistente para funciones","index":10,"n_rows":14,"n_cols":4,"rows_kept":14}
["Deja que el Asistente para funciones te guíe"]
["Si conoces el nombre de la función que deseas, pero no estás seguro de cómo crearla, puedes usar el Asistente para funciones para que te ayude.\n"]
["Selecciona la celda D10 y ve a Fórmulas > Insertar función > Escribe BUSCARV en el cuadro Buscar una función y presiona IR. Cuando veas BUSCARV resaltado, haz clic en Aceptar en la parte inferior. Al seleccionar una función en la lista, Excel mostrará la sintaxis.\n"]
["A continuación, escribe los argumentos de función en los cuadros de texto correspondientes. A medida que escribes cada uno, Excel los evaluará y mostrará el resultado, con el resultado final en la parte inferior. A medida que escribes cada sección, los criterios para cada argumento aparecen en la parte inferior del formulario.  Haz clic en Aceptar cuando hayas terminado, y Excel introducirá la fórmula automáticamente\n\n\n",null,"Frutas","Cantidad"]
["MIRA ESTO\nDebes terminar con =BUSCARV(C10,C5:D8,2,FALSO).",null,"Manzanas",50]
["ES BUENO SABER\nPuedes escribir referencias de celdas y rangos o seleccionarlas con el mouse.",null,"Naranjas",20]
["ES BUENO SABER\nA medida que escribes la sección de cada argumento, se mostrará la descripción del argumento en la parte inferior del formulario, encima del resultado de la Fórmula.\n",null,"Plátanos",60]
["Anterior",null,"Limones",40]
["Siguiente"]
["Más información en la web",null,"Manzanas",{"$f":"VLOOKUP(C10,C5:D8,2,FALSE)","v":50}]
["Información general sobre fórmulas en Excel"]
["Funciones de Excel (por categoría)"]
["Funciones de Excel (por orden alfabético)"]
["Capacitación en línea gratuita de Excel"]

{"sheet":"Errores de fórmula","index":11,"n_rows":36,"n_cols":4,"rows_kept":36}
["Arreglar errores de fórmula"]
["En algún momento, encontrarás una fórmula que tiene un error, que Excel mostrará con #ErrorName. Los errores pueden ser útiles, porque señalan las cosas que no funcionan bien; pero también puede ser difícil corregirlos. Afortunadamente, hay varias opciones que pueden ayudarle a localizar el origen del error y corregirlo.\n"]
["Comprobación de errores: Ve a Fórmulas > Comprobación de errores. Se cargará un cuadro de diálogo que te indicará la causa general de tu error específico. En la celda D9, el error #N/A se debe a que no hay ningún valor que coincida con \"Manzana\". Puedes solucionarlo mediante el uso de un valor que exista, suprimir el error con SI.ERROR, o pasarlo por alto y saber que desaparecerá cuando uses un valor que exista.\n",null,"Frutas","Cantidad"]
["Si haces clic en Ayuda sobre este Error, se abrirá un tema de Ayuda específico para el mensaje de error. Si haces clic en mostrar pasos de cálculo, se cargará el cuadro de diálogo Evaluar fórmula.\n",null,"Manzanas",50]
["Cada vez que hagas clic en Evaluar, Excel analizará la fórmula a una sección por vez. No siempre te indicará por qué se produce un error, pero señalará el lugar. Desde allí, observa el tema de ayuda para deducir qué falló con tu fórmula.\n",null,"Naranjas",20]
["EXPERIMENTO\n¿Qué está mal aquí? Sugerencia: Estamos intentando SUMA todos los elementos.",null,"Plátanos",60]
["ES BUENO SABER\nHacer clic en Opciones te permite establecer las reglas para cuando se muestran o se pasan por alto los errores en Excel.\n",null,"Limones",40]
["Anterior"]
["Siguiente",null,"Manzana",{"$f":"VLOOKUP(C9,C3:D7,2,FALSE)","v":{"$error":"#N/A"}}]
["Más información en la web"]
["Detectar errores en fórmulas"]
["Cómo evitar la ruptura de las fórmulas"]
["Evaluar una fórmula anidada paso a paso"]
["Capacitación en línea gratuita de Excel"]
{"$rows_empty":15}
[null,null,"Frutas","Cantidad"]
[null,null,"Manzanas",50]
[null,null,"Naranjas",20]
[null,null,"Plátanos",60]
[null,null,"Limones",40]
[]
[null,null,"Total",{"$f":"sume(D31:D34)","v":{"$error":"#NAME?"}}]

{"sheet":"Más información","index":12,"n_rows":5,"n_cols":1,"rows_kept":5}
["¿Tienes más preguntas sobre Excel?"]
["Presiona ALT+Q y escribe lo que deseas saber."]
["Sigue. Hay más información con Excel:"]
["Community: Formula preguntas y conéctate con otros fans de Excel.\n"]
["¿Qué más es nuevo?\nLos suscriptores de Office 365 siguen recibiendo actualizaciones continuas y nuevas características.\n\n"]